fUST/lending_fUST_20250626
["ID","MTS","AMOUNT","RATE_DAILY","PERIOD"]
[367618120,1750876247023,-175.67,0.0001726,2]
[367618121,1750876247033,-460.0,0.0001726,2]
[367618122,1750876247042,-460.0,0.0001726,2]
[367618123,1750876247051,-516.76,0.0001726,2]
[367618124,1750876247060,-460.0,0.0001726,2]
[367618125,1750876247070,-411.54,0.0001726,2]
[367618126,1750876247079,-460.0,0.0001726,2]
[367618127,1750876247088,-460.0,0.0001726,2]
[367618128,1750876247098,-460.0,0.0001726,2]
[367618129,1750876247106,-460.0,0.0001726,2]
[367618130,1750876247115,-460.0,0.0001726,2]
[367618131,1750876247126,-577.06,0.0001726,2]
[367618132,1750876247136,-460.0,0.0001726,2]
[367618133,1750876247145,-460.0,0.0001726,2]
[367618134,1750876247155,-460.0,0.0001726,2]
[367618135,1750876247164,-460.0,0.0001726,2]
[367618136,1750876247173,-460.0,0.0001726,2]
[367618137,1750876247183,-460.0,0.0001726,2]
[367618138,1750876247192,-460.0,0.0001726,2]
[367618139,1750876247201,-460.0,0.0001726,2]
[367618140,1750876247211,-460.0,0.0001726,2]
[367618141,1750876247220,-488.76,0.0001726,2]
[367618142,1750876247229,-460.0,0.0001726,2]
[367618143,1750876247239,-460.0,0.0001726,2]
[367618144,1750876247249,-460.0,0.0001726,2]
[367618145,1750876247258,-500.0,0.0001726,2]
[367618146,1750876247267,-630.4,0.0001726,2]
[367618147,1750876247277,-2200.88,0.0001726,2]
[367618148,1750876247286,-2235.17,0.0001726,2]
[367618149,1750876247296,-3849.29,0.0001726,2]
[367618150,1750876247308,-460.0,0.0001726,2]
[367618151,1750876247318,-460.0,0.0001726,2]
[367618152,1750876247327,-602.08,0.0001726,2]
[367618153,1750876247337,-460.0,0.0001726,2]
[367618155,1750876247347,-453.46,0.0001726,2]
[367618156,1750876247356,-540.68,0.0001726,2]
[367618157,1750876247366,-460.0,0.0001726,2]
[367618158,1750876247375,-978.23,0.0001726,2]
[367618159,1750876247385,-570.35,0.0001726,2]
[367618160,1750876247394,-925.51,0.0001726,2]
[367618161,1750876247404,-460.0,0.0001726,2]
[367618162,1750876247414,-460.0,0.0001726,2]
[367618163,1750876247423,-460.37,0.0001726,2]
[367618164,1750876247432,-460.0,0.0001726,2]
[367618165,1750876247442,-460.0,0.0001726,2]
[367618166,1750876247451,-460.0,0.0001726,2]
[367618167,1750876247460,-470.53,0.0001726,2]
[367618168,1750876247470,-1931.13,0.0001726,2]
[367618169,1750876247480,-460.0,0.0001726,2]
[367618170,1750876247489,-460.0,0.0001726,2]
[367618171,1750876247498,-1327.43,0.0001726,2]
[367618172,1750876247507,-1019.99,0.0001726,2]
[367618173,1750876247517,-2501.37,0.0001726,2]
[367618174,1750876247526,-4078.78,0.0001726,2]
[367618175,1750876247535,-488.57,0.0001726,2]
[367618176,1750876247545,-460.0,0.0001726,2]
[367618177,1750876247554,-460.0,0.0001726,2]
[367618178,1750876247563,-460.0,0.0001726,2]
[367618179,1750876247573,-460.0,0.0001726,2]
[367618180,1750876247582,-460.0,0.0001726,2]
[367618181,1750876247592,-2759.77,0.0001726,2]
[367618182,1750876247601,-460.0,0.0001726,2]
[367618183,1750876247610,-460.0,0.0001726,2]
[367618184,1750876247619,-493.9,0.0001726,2]
[367618185,1750876247628,-863.31,0.0001726,2]
[367618186,1750876247637,-460.0,0.0001726,2]
[367618187,1750876247646,-460.0,0.0001726,2]
[367618188,1750876247655,-1556.07,0.0001726,2]
[367618189,1750876247665,-1520.81,0.0001726,2]
[367618190,1750876247676,-1252.0,0.0001726,2]
[367618191,1750876247686,-460.0,0.0001726,2]
[367618192,1750876247695,-460.0,0.0001726,2]
[367618193,1750876247705,-2061.39,0.0001726,2]
[367618194,1750876247715,-788.32,0.0001726,2]
[367618195,1750876247723,-460.0,0.0001726,2]
[367618196,1750876247732,-1737.23,0.0001726,2]
[367618197,1750876247742,-590.54,0.0001726,2]
[367618198,1750876247752,-460.0,0.0001726,2]
[367618199,1750876247763,-460.0,0.0001726,2]
[367618200,1750876247772,-678.56,0.0001726,2]
[367618201,1750876247781,-290.24893735,0.0001726,2]
[367618202,1750876247791,-460.0,0.0001726,2]
[367618203,1750876247799,-460.0,0.0001726,2]
[367618204,1750876247809,-460.0,0.0001726,2]
[367618205,1750876247819,-460.0,0.0001726,2]
[367618206,1750876247829,-466.59,0.0001726,2]
[367618207,1750876247839,-460.0,0.0001726,2]
[367618208,1750876247848,-2612.66,0.0001726,2]
[367618209,1750876247857,-454.5,0.0001726,2]
[367618210,1750876247867,-460.0,0.0001726,2]
[367618211,1750876247876,-652.56,0.0001726,2]
[367618212,1750876247886,-955.88,0.0001726,2]
[367618213,1750876247896,-460.0,0.0001726,2]
[367618214,1750876247906,-460.0,0.0001726,2]
[367618215,1750876247915,-460.0,0.0001726,2]
[367618216,1750876247925,-460.0,0.0001726,2]
[367618217,1750876247934,-460.0,0.0001726,2]
[367618218,1750876247943,-459.82,0.0001726,2]
[367618219,1750876247953,-460.0,0.0001726,2]
[367618220,1750876247963,-564.13476161,0.00017297,2]
[367618221,1750876247974,-3617.59808927,0.00017452,2]
[367618222,1750876247983,-260.39746,0.00017533,2]
[367618223,1750876247993,-151.0,0.00017533,2]
[367618224,1750876248002,-460.0,0.00017534,2]
[367618225,1750876248011,-271.33860655,0.00017534,2]
[367618226,1750876248020,-543.19835291,0.00017534,2]
[367618227,1750876248038,-48.36164709,0.00017534,2]
[367618228,1750876248047,-329.29956223,0.00017534,2]
[367618229,1750876248057,-595.75,0.00017534,2]
[367618230,1750876248067,-460.0,0.00017534,2]
[367618231,1750876248077,-460.0,0.00017534,2]
[367618232,1750876248086,-671.69,0.00017534,2]
[367618233,1750876248095,-460.0,0.00017534,2]
[367618234,1750876248104,-460.0,0.00017534,2]
[367618235,1750876248114,-460.0,0.00017534,2]
[367618236,1750876248123,-460.0,0.00017534,2]
[367618237,1750876248133,-460.0,0.00017534,2]
[367618238,1750876248142,-460.0,0.00017534,2]
[367618239,1750876248152,-460.0,0.00017534,2]
[367618240,1750876248162,-608.12,0.00017534,2]
[367618241,1750876248172,-460.0,0.00017534,2]
[367618242,1750876248182,-460.0,0.00017534,2]
[367618243,1750876248192,-460.0,0.00017534,2]
[367618244,1750876248201,-460.0,0.00017534,2]
[367618245,1750876248211,-460.0,0.00017534,2]
[367618246,1750876248220,-577.06,0.00017534,2]
[367618247,1750876248230,-460.0,0.00017534,2]
[367618248,1750876248240,-321.22,0.00017534,2]
[367618249,1750876248249,-460.0,0.00017534,2]
[367618250,1750876248260,-460.0,0.00017534,2]
[367618251,1750876248270,-460.0,0.00017534,2]
[367618252,1750876248280,-200.09,0.00017534,2]
[367618253,1750876248290,-215.68,0.00017534,2]
[367618254,1750876248300,-503.54,0.00017534,2]
[367618255,1750876248309,-460.0,0.00017534,2]
[367618256,1750876248318,-460.0,0.00017534,2]
[367618257,1750876248328,-460.0,0.00017534,2]
[367618258,1750876248337,-500.0,0.00017534,2]
[367618259,1750876248347,-630.4,0.00017534,2]
[367618260,1750876248356,-2200.88,0.00017534,2]
[367618261,1750876248366,-2235.17,0.00017534,2]
[367618262,1750876248376,-3849.29,0.00017534,2]
[367618263,1750876248386,-460.0,0.00017534,2]
[367618264,1750876248395,-460.0,0.00017534,2]
[367618265,1750876248405,-602.08,0.00017534,2]
[367618266,1750876248414,-460.0,0.00017534,2]
[367618267,1750876248424,-540.68,0.00017534,2]
[367618268,1750876248433,-460.0,0.00017534,2]
[367618269,1750876248442,-978.23,0.00017534,2]
[367618270,1750876248452,-570.35,0.00017534,2]
[367618271,1750876248461,-925.51,0.00017534,2]
[367618272,1750876248471,-459.28,0.00017534,2]
[367618273,1750876248480,-460.0,0.00017534,2]
[367618274,1750876248492,-460.37,0.00017534,2]
[367618275,1750876248501,-460.0,0.00017534,2]
[367618276,1750876248510,-497.38,0.00017534,2]
[367618277,1750876248520,-460.0,0.00017534,2]
[367618278,1750876248530,-470.53,0.00017534,2]
[367618279,1750876248539,-1931.13,0.00017534,2]
[367618280,1750876248548,-460.0,0.00017534,2]
[367618281,1750876248558,-460.0,0.00017534,2]
[367618282,1750876248569,-1327.43,0.00017534,2]
[367618283,1750876248579,-1019.99,0.00017534,2]
[367618284,1750876248589,-4078.78,0.00017534,2]
[367618285,1750876248600,-2501.37,0.00017534,2]
[367618286,1750876248610,-488.57,0.00017534,2]
[367618287,1750876248620,-528.54339699,0.00017534,2]
[367618288,1750876248631,-460.0,0.00017534,2]
[367618289,1750876248642,-460.0,0.00017534,2]
[367618290,1750876248652,-460.0,0.00017534,2]
[367618291,1750876248661,-460.0,0.00017534,2]
[367618292,1750876248673,-2759.77,0.00017534,2]
[367618293,1750876248683,-460.0,0.00017534,2]
[367618294,1750876248693,-486.7766044,0.00017534,2]
[367618295,1750876248702,-493.9,0.00017534,2]
[367618296,1750876248711,-863.31,0.00017534,2]
[367618297,1750876248722,-460.0,0.00017534,2]
[367618298,1750876248732,-460.0,0.00017534,2]
[367618299,1750876248741,-1556.07,0.00017534,2]
[367618300,1750876248751,-1520.81,0.00017534,2]
[367618301,1750876248760,-1252.0,0.00017534,2]
[367618302,1750876248770,-460.0,0.00017534,2]
[367618303,1750876248780,-2061.39,0.00017534,2]
[367618304,1750876248790,-460.0,0.00017534,2]
[367618305,1750876248800,-788.32,0.00017534,2]
[367618306,1750876248809,-304.22393717,0.00017534,2]
[367618307,1750876248820,-1737.23,0.00017534,2]
[367618308,1750876248829,-460.0,0.00017534,2]
[367618309,1750876248839,-678.56,0.00017534,2]
[367618310,1750876248848,-460.0,0.00017534,2]
[367618311,1750876248858,-460.0,0.00017534,2]
[367618312,1750876248867,-460.0,0.00017534,2]
[367618313,1750876248877,-460.0,0.00017534,2]
[367618314,1750876248887,-466.59,0.00017534,2]
[367618315,1750876248897,-460.0,0.00017534,2]
[367618316,1750876248906,-2612.66,0.00017534,2]
[367618317,1750876248917,-460.0,0.00017534,2]
[367618318,1750876248926,-652.56,0.00017534,2]
[367618319,1750876248936,-955.88,0.00017534,2]
[367618320,1750876248946,-238.77307546,0.00017534,2]
[367618321,1750876248955,-249.14,0.00017534,2]
[367618322,1750876248965,-460.0,0.00017534,2]
[367618323,1750876248975,-262.65229,0.00017534,2]
[367618324,1750876248985,-460.0,0.00017534,2]
[367618325,1750876248995,-460.0,0.00017534,2]
[367618326,1750876249006,-460.0,0.00017534,2]
[367618327,1750876249016,-1000.0,0.00017657,2]
[367618328,1750876249025,-1000.0,0.00017661,2]
[367618329,1750876249035,-1000.0,0.00017667,2]
[367618330,1750876249045,-500.0,0.00017681,2]
[367618331,1750876249054,-3617.59808927,0.00017728,2]
[367618332,1750876249064,-168.0,0.00017744,2]
[367618333,1750876249073,-564.13476161,0.00017777,2]
[367618334,1750876249082,-1000.0,0.00017779,2]
[367618335,1750876249092,-460.0,0.00017808,2]
[367618336,1750876249102,-250.549614,0.00017808,2]
[367618337,1750876249111,-595.75,0.00017808,2]
[367618338,1750876249120,-460.0,0.00017808,2]
[367618339,1750876249130,-460.0,0.00017808,2]
[367618340,1750876249140,-671.69,0.00017808,2]
[367618341,1750876249151,-460.0,0.00017808,2]
[367618342,1750876249161,-460.0,0.00017808,2]
[367618343,1750876249171,-420.74,0.00017808,2]
[367618344,1750876249181,-412.35,0.00017808,2]
[367618345,1750876249192,-460.0,0.00017808,2]
[367618346,1750876249202,-460.0,0.00017808,2]
[367618347,1750876249213,-460.0,0.00017808,2]
[367618348,1750876249223,-460.0,0.00017808,2]
[367618349,1750876249232,-460.0,0.00017808,2]
[367618350,1750876249242,-460.0,0.00017808,2]
[367618351,1750876249252,-534.5,0.00017808,2]
[367618352,1750876249262,-577.06,0.00017808,2]
[367618353,1750876249272,-460.0,0.00017808,2]
[367618354,1750876249282,-460.0,0.00017808,2]
[367618355,1750876249292,-460.0,0.00017808,2]
[367618356,1750876249301,-584.8,0.00017808,2]
[367618357,1750876249310,-322.4,0.00017808,2]
[367618358,1750876249320,-460.0,0.00017808,2]
[367618359,1750876249331,-460.0,0.00017808,2]
[367618360,1750876249340,-500.0,0.00017808,2]
[367618361,1750876249350,-151.0,0.00017808,2]
[367618362,1750876249359,-630.4,0.00017808,2]
[367618363,1750876249369,-2200.88,0.00017808,2]
[367618364,1750876249378,-2235.17,0.00017808,2]
[367618365,1750876249388,-3849.29,0.00017808,2]
[367618366,1750876249398,-460.0,0.00017808,2]
[367618367,1750876249408,-151.0,0.00017808,2]
[367618368,1750876249418,-460.0,0.00017808,2]
[367618369,1750876249427,-602.08,0.00017808,2]
[367618370,1750876249438,-460.0,0.00017808,2]
[367618371,1750876249447,-540.68,0.00017808,2]
[367618372,1750876249457,-460.0,0.00017808,2]
[367618373,1750876249466,-978.23,0.00017808,2]
[367618374,1750876249476,-570.35,0.00017808,2]
[367618375,1750876249485,-925.51,0.00017808,2]
[367618376,1750876249494,-521.17,0.00017808,2]
[367618377,1750876249649,-460.37,0.00017808,2]
[367618378,1750876249660,-460.0,0.00017808,2]
[367618379,1750876249670,-460.0,0.00017808,2]
[367618380,1750876249682,-470.53,0.00017808,2]
[367618381,1750876249692,-1931.13,0.00017808,2]
[367618382,1750876249701,-460.0,0.00017808,2]
[367618383,1750876249711,-460.0,0.00017808,2]
[367618384,1750876249721,-1327.43,0.00017808,2]
[367618385,1750876249732,-1019.99,0.00017808,2]
[367618386,1750876249742,-2015.78091347,0.00017808,2]
[367618387,1750876249757,-485.58908653,0.00017808,2]
[367618388,1750876249768,-4078.78,0.00017808,2]
[367618389,1750876249778,-488.57,0.00017808,2]
[367618390,1750876249787,-460.0,0.00017808,2]
[367618391,1750876249797,-460.0,0.00017808,2]
[367618392,1750876249806,-460.0,0.00017808,2]
[367618393,1750876249816,-460.0,0.00017808,2]
[367618394,1750876249826,-2759.77,0.00017808,2]
[367618395,1750876249835,-460.0,0.00017808,2]
[367618396,1750876249845,-493.9,0.00017808,2]
[367618397,1750876249855,-863.31,0.00017808,2]
[367618398,1750876249865,-460.0,0.00017808,2]
[367618399,1750876249874,-460.0,0.00017808,2]
[367618400,1750876249884,-1556.07,0.00017808,2]
[367618401,1750876249893,-1520.81,0.00017808,2]
[367618402,1750876249902,-1252.0,0.00017808,2]
[367618403,1750876249912,-460.0,0.00017808,2]
[367618404,1750876249921,-151.0,0.00017808,2]
[367618405,1750876249930,-2061.39,0.00017808,2]
[367618406,1750876249939,-176.03,0.00017808,2]
[367618407,1750876249949,-788.32,0.00017808,2]
[367618408,1750876249958,-782.67654782,0.00017808,2]
[367618409,1750876249970,-954.55345218,0.00017808,2]
[367618410,1750876249979,-460.0,0.00017808,2]
[367618411,1750876249989,-678.56,0.00017808,2]
[367618412,1750876249999,-158.77,0.00017808,2]
[367618413,1750876250010,-460.0,0.00017808,2]
[367618414,1750876250019,-460.0,0.00017808,2]
[367618415,1750876250029,-466.59,0.00017808,2]
[367618416,1750876250038,-212.42,0.00017808,2]
[367618417,1750876250048,-460.0,0.00017808,2]
[367618418,1750876250057,-1374.92422782,0.00017808,2]
[367618419,1750876250235,-460.0,0.00016438,2]
[367618420,1750876250244,-460.0,0.00016438,2]
[367618421,1750876250254,-460.0,0.00016438,2]
[367618422,1750876250265,-460.0,0.00016712,2]
[367618423,1750876250274,-219.73,0.00016712,2]
[367618424,1750876250284,-358.6,0.00016712,2]
[367618425,1750876250294,-460.0,0.00016986,2]
[367618426,1750876250303,-1729.812895,0.00017,2]
[367618427,1750876250313,-460.0,0.0001726,2]
[367618428,1750876250324,-1000.0,0.000175,2]
[367618429,1750876250334,-460.0,0.00017534,2]
[367618430,1750876250343,-1237.73577218,0.00017808,2]
[367618431,1750876250352,-460.0,0.00017808,2]
[367618432,1750876250362,-652.56,0.00017808,2]
[367618433,1750876250372,-955.88,0.00017808,2]
[367618434,1750876250381,-460.0,0.00017808,2]
[367618435,1750876250391,-460.0,0.00017808,2]
[367618436,1750876250402,-460.0,0.00017808,2]
[367618437,1750876250412,-460.0,0.00017808,2]
[367618438,1750876250422,-460.0,0.00017808,2]
[367618439,1750876250432,-420.0,0.0001796,2]
[367618440,1750876250442,-180.0,0.0001796,2]
[367618441,1750876250451,-283.681,0.00017976,2]
[367618442,1750876250462,-168.0,0.00017981,2]
[367618443,1750876250471,-1000.0,0.00018,2]
[367618444,1750876250481,-168.0,0.00018003,2]
[367618445,1750876250491,-3617.59808927,0.00018003,2]
[367618446,1750876250500,-168.0,0.00018027,2]
[367618447,1750876250510,-965.0,0.00018043,2]
[367618448,1750876250519,-460.0,0.00018082,2]
[367618449,1750876250529,-595.75,0.00018082,2]
[367618450,1750876250539,-460.0,0.00018082,2]
[367618451,1750876250548,-460.0,0.00018082,2]
[367618452,1750876250558,-671.69,0.00018082,2]
[367618453,1750876250569,-460.0,0.00018082,2]
[367618454,1750876250578,-460.0,0.00018082,2]
[367618455,1750876250588,-460.0,0.00018082,2]
[367618456,1750876250597,-460.0,0.00018082,2]
[367618457,1750876250607,-460.0,0.00018082,2]
[367618458,1750876250616,-425.41394983,0.00018082,2]
[367618459,1750876250626,-267.081153,0.00018082,2]
[367618460,1750876250635,-460.0,0.00018082,2]
[367618461,1750876250644,-460.0,0.00018082,2]
[367618462,1750876250654,-504.61100566,0.00018082,2]
[367618463,1750876250666,-72.44899434,0.00018082,2]
[367618464,1750876250679,-460.0,0.00018082,2]
[367618465,1750876250688,-111.40600571,0.00018082,2]
[367618466,1750876250700,-348.59399429,0.00018082,2]
[367618467,1750876250710,-460.0,0.00018082,2]
[367618468,1750876250720,-460.0,0.00018082,2]
[367618469,1750876250730,-400.17519768,0.00018082,2]
[367618470,1750876250739,-2200.88,0.00018082,2]
[367618471,1750876250749,-2235.17,0.00018082,2]
[367618472,1750876250759,-120.57122186,0.00018082,2]
[367618473,1750876250771,-3728.71877814,0.00018082,2]
[367618474,1750876250780,-460.0,0.00018082,2]
[367618475,1750876250790,-343.78,0.00018082,2]
[367618476,1750876250799,-602.08,0.00018082,2]
[367618477,1750876250809,-460.0,0.00018082,2]
[367618478,1750876250818,-540.68,0.00018082,2]
[367618479,1750876250827,-460.0,0.00018082,2]
[367618480,1750876250837,-978.23,0.00018082,2]
[367618481,1750876250846,-570.35,0.00018082,2]
[367618482,1750876250856,-925.51,0.00018082,2]
[367618483,1750876250866,-460.37,0.00018082,2]
[367618484,1750876250875,-460.0,0.00018082,2]
[367618485,1750876250884,-460.0,0.00018082,2]
[367618486,1750876250894,-470.53,0.00018082,2]
[367618487,1750876250903,-1931.13,0.00018082,2]
[367618488,1750876250912,-460.0,0.00018082,2]
[367618489,1750876250922,-460.0,0.00018082,2]
[367618490,1750876250931,-1327.43,0.00018082,2]
[367618491,1750876250941,-1019.99,0.00018082,2]
[367618492,1750876250950,-2501.37,0.00018082,2]
[367618493,1750876250959,-4078.78,0.00018082,2]
[367618494,1750876250968,-488.57,0.00018082,2]
[367618495,1750876250978,-460.0,0.00018082,2]
[367618496,1750876250988,-151.0,0.00018082,2]
[367618497,1750876250998,-460.0,0.00018082,2]
[367618498,1750876251008,-460.0,0.00018082,2]
[367618499,1750876251018,-460.0,0.00018082,2]
[367618500,1750876251028,-2759.77,0.00018082,2]
[367618501,1750876251038,-460.0,0.00018082,2]
[367618502,1750876251047,-493.9,0.00018082,2]
[367618503,1750876251056,-863.31,0.00018082,2]
[367618504,1750876251065,-460.0,0.00018082,2]
[367618505,1750876251074,-460.0,0.00018082,2]
[367618506,1750876251084,-1556.07,0.00018082,2]
[367618507,1750876251093,-1520.81,0.00018082,2]
[367618508,1750876251103,-1252.0,0.00018082,2]
[367618509,1750876251112,-460.0,0.00018082,2]
[367618510,1750876251122,-2061.39,0.00018082,2]
[367618511,1750876251131,-788.32,0.00018082,2]
[367618512,1750876251141,-1737.23,0.00018082,2]
[367618513,1750876251151,-460.0,0.00018082,2]
[367618514,1750876251160,-678.56,0.00018082,2]
[367618515,1750876251169,-460.0,0.00018082,2]
[367618516,1750876251179,-466.59,0.00018082,2]
[367618517,1750876251188,-460.0,0.00018082,2]
[367618518,1750876251197,-2612.66,0.00018082,2]
[367618519,1750876251207,-199.59,0.00018082,2]
[367618520,1750876251216,-652.56,0.00018082,2]
[367618521,1750876251226,-955.88,0.00018082,2]
[367618522,1750876251235,-460.0,0.00018082,2]
[367618523,1750876251245,-460.0,0.00018082,2]
[367618524,1750876251255,-292.31,0.00018082,2]
[367618525,1750876251264,-515.36,0.00018082,2]
[367618526,1750876251273,-21.09173273,0.00018082,2]
[367618527,1750876418683,582.9941423,0.00015434,2]
[367618528,1750876573609,7901.0688842,0.00015699,2]
[367618529,1750876627611,188.3035817,0.00015575,2]
[367618530,1750876674212,2295.87696898,0.000161,2]
[367618531,1750876734107,1299.60321407,0.000161,2]
[367618532,1750876878149,6043.07025118,0.00015438,2]
[367618533,1750876878172,18856.92974882,0.00015438,2]
[367618534,1750876955198,388.020618,0.00013699,2]
[367618536,1750876979008,318.2768055,0.00015438,2]
[367618539,1750877093693,436.77282768,0.00015438,2]
[367618540,1750877093716,9563.22717232,0.00015438,2]
[367618541,1750877112740,263.011338,0.00015944,2]
[367618542,1750877141862,3261.09288913,0.000161,2]
[367618543,1750877163564,712.651945,0.00015482,2]
[367618545,1750877336501,153.89675049,0.000161,2]
[367618548,1750877414348,242.75308224,0.00015945,2]
[367618552,1750877431768,-300.0,0.00016427,2]
[367618553,1750877431779,-544.14,0.00016428,3]
[367618554,1750877431789,-453.45,0.00016428,3]
[367618555,1750877431798,-226.72,0.00016428,3]
[367618556,1750877431808,-680.19,0.00016428,3]
[367618557,1750877431817,-544.14,0.00016428,3]
[367618558,1750877431827,-272.07,0.00016428,3]
[367618559,1750877431836,-816.23,0.00016428,3]
[367618560,1750877431846,-8474.16380221,0.00016437,2]
[367618561,1750877431855,-215.33694048,0.00016437,2]
[367618562,1750877431864,-378.69170661,0.00016437,2]
[367618604,1750877437741,-25.71175961,0.00016437,2]
[367618606,1750877437750,-290.65043108,0.00016437,2]
[367618608,1750877437759,-350.91638319,0.00016437,2]
[367618618,1750877437847,-149.08361681,0.00016437,2]
[367618619,1750877437857,-500.0,0.00016437,2]
[367618620,1750877437866,-500.0,0.00016437,2]
[367618621,1750877437875,-628.43653659,0.00016437,2]
[367618622,1750877437885,-500.0,0.00016437,2]
[367618623,1750877437894,-500.0,0.00016437,2]
[367618624,1750877437902,-500.0,0.00016437,2]
[367618625,1750877437911,-500.0,0.00016437,2]
[367618626,1750877437921,-500.0,0.00016437,2]
[367618627,1750877437930,-300.0,0.00016437,2]
[367618628,1750877437939,-460.0,0.00016438,2]
[367618629,1750877437948,-460.0,0.00016438,2]
[367618630,1750877437957,-460.0,0.00016438,2]
[367618631,1750877437967,-460.0,0.00016438,2]
[367618632,1750877437977,-460.0,0.00016438,2]
[367618633,1750877437987,-460.0,0.00016438,2]
[367618635,1750877437996,-460.0,0.00016438,2]
[367618637,1750877438005,-460.0,0.00016438,2]
[367618639,1750877438015,-470.54072667,0.00016438,2]
[367618641,1750877438024,-460.0,0.00016438,2]
[367618643,1750877438033,-460.0,0.00016438,2]
[367618644,1750877438043,-460.0,0.00016438,2]
[367618645,1750877438053,-460.0,0.00016438,2]
[367618646,1750877438062,-306.38305132,0.00016438,2]
[367618647,1750877438072,-337.50114976,0.00016438,2]
[367618648,1750877438081,-460.0,0.00016438,2]
[367618649,1750877438092,-460.0,0.00016438,2]
[367618650,1750877438101,-460.0,0.00016438,2]
[367618651,1750877438283,-460.0,0.00016438,2]
[367618652,1750877438294,-460.0,0.00016438,2]
[367618653,1750877438304,-174.05251463,0.00016438,2]
[367618654,1750877438314,-588.77762635,0.00016438,2]
[367618655,1750877438324,-460.0,0.00016438,2]
[367618656,1750877438334,-393.19925376,0.00016438,2]
[367618657,1750877438344,-460.0,0.00016438,2]
[367618658,1750877438354,-460.0,0.00016438,2]
[367618659,1750877438363,-460.0,0.00016438,2]
[367618660,1750877438373,-456.73003405,0.00016438,2]
[367618661,1750877438382,-460.0,0.00016438,2]
[367618662,1750877438392,-460.0,0.00016438,2]
[367618663,1750877438401,-460.0,0.00016438,2]
[367618664,1750877438411,-460.0,0.00016438,2]
[367618665,1750877438420,-460.0,0.00016438,2]
[367618666,1750877438430,-251.75323977,0.00016438,2]
[367618667,1750877438440,-460.0,0.00016438,2]
[367618668,1750877438449,-460.0,0.00016438,2]
[367618669,1750877438459,-410.29612701,0.00016438,2]
[367618670,1750877438468,-510.99310834,0.00016438,2]
[367618671,1750877438478,-285.38,0.00016438,2]
[367618672,1750877438488,-460.0,0.00016438,2]
[367618673,1750877438497,-460.0,0.00016438,2]
[367618674,1750877438507,-460.0,0.00016438,2]
[367618675,1750877438516,-460.0,0.00016438,2]
[367618676,1750877438526,-460.0,0.00016438,2]
[367618677,1750877438535,-460.0,0.00016438,2]
[367618678,1750877438545,-460.0,0.00016438,2]
[367618679,1750877438555,-449.57793822,0.00016438,2]
[367618680,1750877438564,-500.0,0.00016438,2]
[367618681,1750877438575,-336.13072068,0.00016438,2]
[367618682,1750877438584,-461.19224299,0.00016438,2]
[367618683,1750877438595,-460.0,0.00016438,2]
[367618684,1750877438605,-460.0,0.00016438,2]
[367618685,1750877438614,-460.0,0.00016438,2]
[367618686,1750877438624,-460.0,0.00016438,2]